Cogmind - Beta 14 @@@ ROGUE MODE // 2024.08.14 @ 20:53:42 Player: Gaffe Result: Destroyed by S-10 Pest with Light Assault Rifle Performance ------------- Evolutions (0) 0 Regions Visited (1) 200 Robots Destroyed (11) 55 Value Destroyed (279) 279 Prototype IDs (0) 0 Alien Tech Used (0) 0 Bonus (0) 0 TOTAL SCORE: 534 Bonus ------- None Cogmind --------- Core Integrity 0/250 Matter 244/300 Energy 80/100 System Corruption 2% Temperature Cool (0) Movement Walking (330) Ox3 Location -10/Materials Parts ------- > --- POWER (1) -------- (None) > --- PROPULSION (2) --- Aluminum Leg > --- UTILITY (2) ------ High-capacity Storage Unit > --- WEAPON (2) ------- (None) > --- INVENTORY (20) --- Visual Processing Unit Welding Torch Peak State ------------ > --- POWER ------------ Ion Engine > --- PROPULSION ------- Wheel Wheel > --- UTILITY ---------- Small Storage Unit High-capacity Storage Unit > --- WEAPON ----------- Beam Cannon Assault Rifle > --- INVENTORY -------- EM Pulse Gun Grenade Launcher Welding Torch [Rating: 7] Favorites ----------- Power Ion Engine Engine Ion Engine Propulsion Wheel Leg Aluminum Leg Wheel Wheel Utility Small Storage Unit Storage Small Storage Unit Weapon Assault Rifle Energy Gun EM Pulse Gun Energy Cannon Beam Cannon Ballistic Gun Assault Rifle Launcher Grenade Launcher Build | -11 -10 ------- Run | Yrd Mat Slots Evolved . | . . Power . | . . Propulsion . | . . Utility . | . . Weapon . | . . Parts Attached 15 | 8 7 Power 1 | 1 . Engine 1 | 1 . Core . | . . Reactor . | . . Propulsion 6 | 4 2 Treads . | . . Leg 4 | 2 2 Wheel 2 | 2 . Hover . | . . Flight . | . . Utility 2 | 1 1 Device . | . . Storage 2 | 1 1 Processor . | . . Hackware . | . . Protection . | . . Artifact . | . . Weapon 6 | 2 4 Energy Gun 2 | 1 1 Energy Cannon 2 | . 2 Ballistic Gun 1 | 1 . Ballistic Cannon . | . . Launcher 1 | . 1 Special Weapon . | . . Impact Weapon . | . . Slashing Weapon . | . . Piercing Weapon . | . . Special Melee Weapon . | . . Unidentified Prototypes . | . . Corrupted Parts 1 | . 1 System Corruption 2 | . 2 Parts Lost 6 | . 6 Power 1 | . 1 Propulsion 1 | . 1 Utility . | . . Weapon 4 | . 4 Highest Loss Streak 6 | . 6 To Critical Strikes . | . . Average Slot Usage (%) 79 | . 79 Engine 10 | . 10 Leg 2 | . 2 Wheel 21 | . 21 Storage 18 | . 18 Energy Gun 3 | . 3 Energy Cannon 9 | . 9 Ballistic Gun 11 | . 11 Launcher 1 | . 1 Peak Build Rating 7 | 6 7 Average Rating 5 | 5 5 On Entrance 3 | . 6 Naked Turns . | . . Heaviest Build 55 | 14 55 Greatest Support 20 | 20 20 Greatest Overweight (x) 4 | 3 4 Average Overweight (x) . | . 1 Largest Inventory Capacity 20 | 8 20 Average Capacity 8 | 7 18 Most Carried 5 | . 5 Average Carried . | . 3 Final Capacity 20 | 8 20 Final Carried 2 | . 2 Class Distribution -------------------- 100% | Mutant Dominant Class ---------------- Mutant | -10/Materials Resources | -11 -10 ----------- Run | Yrd Mat Matter Collected 331 | 214 117 Remotely . | . . Salvage Created 333 | 30 303 Parts 25 | 1 24 Haulers Intercepted . | . . Recyclers Shooed . | . . Parts Field Recycled . | . . Retrieved Matter . | . . Parts Self-Destructed . | . . Prevented . | . . Kills | -11 -10 ------- Run | Yrd Mat Combat Hostiles Destroyed 6 | . 6 Guns 1 | . 1 Cannons 3 | . 3 AOE 2 | . 2 Classes Destroyed 6 | 1 5 Worker 1 | . 1 Tunneler 1 | 1 . Recycler 1 | . 1 Watcher 2 | . 2 Swarmer 1 | . 1 Grunt 5 | . 5 Best Kill Streak 4 | 1 4 Combat Bots Only 2 | . 2 Max Kills in Single Turn 4 | 1 4 Gunslinging . | . . Exploded 2 | . 2 Melee . | . . Uniques/NPCs Destroyed . | . . Combat | -11 -10 -------- Run | Yrd Mat Hostile Shots Fired 115 | . 115 Missed 29 | . 29 Damage Taken 809 | . 809 Core 254 | . 254 Absorbed by Shields . | . . Core Remaining (%) 100 | 100 . Volleys Fired 33 | 4 29 Largest 2 | 1 2 Hottest 80 | 40 80 Shots Fired 52 | 4 48 Gun 26 | 4 22 Cannon 25 | . 25 Launcher 1 | . 1 Special . | . . Kinetic 19 | . 19 Thermal 25 | . 25 Explosive 1 | . 1 Electromagnetic 7 | 4 3 Robot Hit Streak 9 | 3 9 Robot Miss Streak 2 | . 2 Penetration Max . | . . Secondary Targets . | . . Shots Hit Robots 36 | 3 33 Core Hits 18 | 1 17 Critical Kills . | . . Critical Parts Destroyed . | . . Critical Strikes . | . . Melee Attacks . | . . Impact . | . . Slashing . | . . Piercing . | . . Sneak Attacks . | . . Combat Hostiles . | . . Follow-up Attacks . | . . Damage Inflicted 742 | 42 700 Guns 246 | 42 204 Cannons 333 | . 333 Explosions 163 | . 163 Melee . | . . Ramming . | . . Kinetic 162 | . 162 Thermal 333 | . 333 Explosive 163 | . 163 Electromagnetic 84 | 42 42 Impact . | . . Slashing . | . . Piercing . | . . Highest Corruption . | . . Average Corruption . | . . Corruption Purged . | . . Corruption Blocked . | . . Overload Shots . | . . Overflow Damage 2 | . 2 Projectiles . | . . Explosions 2 | . 2 Melee . | . . Knockbacks . | . . Impact . | . . Kinetic . | . . Secondary . | . . Self-Inflicted Damage . | . . Shots . | . . Rammed . | . . Targets Rammed . | . . Kicked . | . . Crushed . | . . Highest Temperature 214 | . 214 Average Temperature 72 | . 72 Received Heat Transfer 270 | . 270 Effects 2 | . 2 Interference 2 | . 2 Siege Activations . | . . Robots Corrupted . | . . Combat Hostiles . | . . Parts Fried . | . . Impact Corruptions . | . . Robots Melted . | . . Combat Hostiles . | . . Parts Melted 1 | . 1 Heat Transferred 703 | . 703 Parts Sabotaged . | . . Parts Stolen . | . . Parts Stripped . | . . Power Chain Reactions . | . . Alert | -11 -10 ------- Run | Yrd Mat Peak Influence 245 | 5 245 Initial . | . . Average 6 | . 106 Maximum Alert Level 1 | . 1 Low Security (%) 98 | 100 81 Level 1 1 | . 18 Level 2 . | . . Level 3 . | . . Level 4 . | . . Level 5 . | . . High Security . | . . Max Security . | . . Squads Dispatched 2 | . 2 Investigation . | . . Extermination . | . . Reinforcement 2 | . 2 Assault . | . . Garrison . | . . Intercept . | . . Searches Triggered . | . . Construction Impeded . | . . Haulers Reinforced . | . . Active Scanning Responses . | . . Cargo Convoy Interrupts . | . . Stealth | -11 -10 --------- Run | Yrd Mat Distress Signals . | . . Communications Jammed . | . . Distress Signals . | . . Times Spotted 15 | . 15 Peak Tracking Total 6 | . 6 Tactical Retreats 1 | . 1 Traps | -11 -10 ------- Run | Yrd Mat Traps Triggered . | . . Indirectly . | . . Trap Hack Attempts . | . . Triggered . | . . Disarmed . | . . Reprogrammed . | . . Reused . | . . Traps Extracted . | . . Installed . | . . Triggered . | . . Machines | -11 -10 ---------- Run | Yrd Mat Machines Disabled 4 | . 4 Max in Single Turn 2 | . 2 Machines Repaired . | . . Machines Dismantled . | . . Machines Sabotaged . | . . Overloaded Fab Kills . | . . Hacking | -11 -10 --------- Run | Yrd Mat Machines Accessed . | . . Terminals . | . . Fabricators . | . . Repair Stations . | . . Recycling Units . | . . Scanalyzers . | . . Garrison Access . | . . Total Hacks . | . . Successful . | . . Failed . | . . Catastrophic . | . . Database Lockouts . | . . Manual . | . . Terminals . | . . Fabricators . | . . Repair Stations . | . . Recycling Units . | . . Scanalyzers . | . . Garrison Access . | . . Terminal Hacks . | . . Fabricator Hacks . | . . Repair Station Hacks . | . . Recycling Unit Hacks . | . . Scanalyzer . | . . Garrison Access Hacks . | . . Unauthorized Hacks . | . . Terminals . | . . Fabricators . | . . Repair Stations . | . . Recycling Units . | . . Scanalyzers . | . . Garrison Access . | . . Data Cores Recovered . | . . Used . | . . Hacking Detections . | . . Full Trace Events . | . . Feedback Events . | . . Feedback Blocked . | . . Robot Schematics Acquired . | . . Robots Built . | . . Authchips . | . . Time . | . . Total Robot Build Rating . | . . Part Schematics Acquired . | . . Parts Built . | . . Authchips . | . . Time . | . . Total Part Build Rating . | . . Parts Repaired . | . . Time . | . . Parts Recycled . | . . Recycled Matter . | . . Retrieved Matter . | . . Retrieved Components . | . . Parts Scanalyzed . | . . Part Schematics Acquired . | . . Parts Damaged . | . . Bothacking | -11 -10 ------------ Run | Yrd Mat Used RIF Installer . | . . Robots Hacked . | . . Non-combat . | . . Combat . | . . Robot Hacks Applied . | . . Relay Couplers Released . | . . Fabnet Peak Effective % . | . . Robots Rewired . | . . Allies Hacked . | . . Hacks Repelled . | . . Allies | -11 -10 -------- Run | Yrd Mat Total Allies . | . . Largest Group . | . . Highest-Rated Group . | . . Highest-Rated Ally . | . . Total Orders . | . . Ally Attacks . | . . Total Damage . | . . Kills . | . . Allies Corrupted . | . . Allies Melted . | . . Intel | -11 -10 ------- Run | Yrd Mat Robot Analysis Total . | . . Derelict Logs Recovered . | . . Drone Launches . | . . Drone Recoveries . | . . Exploration | -11 -10 ------------- Run | Yrd Mat Turns Passed 3789 | 3569 220 Spaces Moved 1074 | 988 86 Core 12 | 12 . Treads . | . . Legs 10 | 4 6 Wheels 1052 | 972 80 Hover . | . . Flight . | . . Fastest Speed 50 | 50 80 Average Speed 84 | 81 123 Slowest Speed 400 | 200 400 Overloaded Moves . | . . Propulsion Burnouts . | . . Robots Hopped . | . . Cave-ins Triggered . | . . Exploration Rate (%) 54 | 83 25 Regions Visited 1 Branch Regions . Pre-discovered Areas . | . . Known Exits Taken . | . . Unknown Exits Taken 1 | 1 . Scrap Searched . | . . Spaces Dug . | . . Terrain Destroyed . | . . Melee . | . . Projectile . | . . AOE . | . . Terrain Rammed . | . . Walls Destroyed . | . . Machines Disabled . | . . Actions | -11 -10 --------- Run | Yrd Mat Total 3898 | 3746 152 Wait 2767 | 2745 22 Move 1073 | 987 86 Hop . | . . Pick Up 6 | . 6 Fast Attach 9 | 8 1 Attach 4 | . 4 Detach . | . . Swap 2 | . 2 Drop 4 | 2 2 Fire 33 | 4 29 Melee . | . . Ram . | . . Kick . | . . Crush . | . . Escape Stasis . | . . Rewire . | . . Trap . | . . Miscellaneous . | . . Route ------- -11/Scrapyard -10/Materials (discovered 1 exit: [*Min]) History --------- Turn | Location | Event 27 | -11/Scrapyard | Discovered new exit (range 15) 3570 | -11/Scrapyard | Entered Materials 3571 | -10/Materials | Build established: Mutant 3667 | -10/Materials | Discovered new exit (range 8) 3756 | -10/Materials | Core integrity fell below 50% 3777 | -10/Materials | Core integrity fell below 20% 3790 | -10/Materials | Destroyed by S-10 Pest with Light Assault Rifle Last Messages --------------- K-01 Serf collects debris. R-06 Scavenger inserts Aluminum Leg into recycling unit. U-05 Engineer lays Concrete. M-13 Machinist fits Backup Propulsion I on S-10 Pest. U-05 Engineer lays Concrete. G-34 Mercenary destroyed. U-05 Engineer lays Concrete. K-01 Serf collects debris. R-06 Scavenger collects Wheel. U-05 Engineer lays Concrete. Beam Cannon destroyed. U-05 Engineer lays Concrete. K-01 Serf collects debris. U-05 Engineer lays Concrete. K-01 Serf collects debris. Acquired Corrupted Aluminum Leg. Integrated Corrupted Aluminum Leg (+2). Complication: Aluminum Leg rejected. Map ----- +----------------------------------------------------+ | ???????????????????????????# #???????????????????? | | ??????????????????????????##+#####???????????????? | | ??????????????????????????# #???????????????? | | ??????????????????????????# | #???????????????? | | ??????????????????????????# || #???????????????? | | ??????????????????????????# #???????????????? | | ??????????????????????????# #???????????????? | | ??????????????????????????# """ #???????????????? | | ??????????????????????????# """ #???????????????? | | ??????????????????????????# """ #???????????????? | | ??????????????????#???????# ###?????????????? | | ??????????????????# ????# "" + ??????????????? | | ??????????????????# ????# """ #?######????????? | | ??????????????????# ##### """ #?"|"|""#???????? | | ??????????????????# #"""# # "|"|" #???????? | | ??????????????????# #"Y"#####+## # ???? | | ??????????????????# T % o ???? | | ??????????????????# < ???? | | ??????????????????# """ ???? | | ??????????????????# """ ## ####????? | | ??????????????????# """ "#########???????? | | ??????????????????# T#???????????????? | | ??????????????????# [ "#???????????????? | | ??????????????????#^ " *% " ##???????????????? | | ???????????#+##+### r""uk! " %"#???????????????? | | ???????????# ""! @ T#???????????????? | | ???????????# = s%! "#???????????????? | | ???????????# us* ##???????????????? | | ???????????###+#### """ " w#????????????????? | | ??????????????????# """ """ ?????????????? | | ??????????????????# """ """ #???????????? | | ??????????????????# #???????????? | | ??????????????????# +???????????? | | ??????????????????# """ """ #???????????? | | ??????????????????# """ """ #???????????? | | ??????????????????+ """ """ ?????????????? | | ??????????????????# ? ?? ?????????????? | | ??????????????????# ? ?? ???????????????? | | ??????????????????# ? ? ?????????????????? | | ??????????????????? ?####??????????????????????? | | ??????????????????? ???????????????????????????? | | ??????????????????? ???????????????????????????? | | ?????????????????????????????????????????????????? | | ?????????????????????????????????????????????????? | | ?????????????????????????????????????????????????? | | ?????????????????????????????????????????????????? | | ?????????????????????????????????????????????????? | | ?????????????????????????????????????????????????? | | ?????????????????????????????????????????????????? | | ?????????????????????????????????????????????????? | +----------------------------------------------------+ Best States ------------- Heat Dissipation 25 Energy Generation 10 Energy Capacity 250 Matter Stores 264 Matter Capacity 300 Sight Range 16 Terrain Scan Density 10 Evasion (%) 44 Item Schematics ----------------- None Robot Schematics ------------------ None Fabricated ------------ Nothing Alien Tech Used ----------------- None Achievements -------------- None Challenges ------------ None Game ------ Seed MinesnifferComponentSink Manual? 0 Play Time 00:13:08 Cumulative 9.5 hours Start 2024.08.14 @ 20:41:31 End 2024.08.14 @ 20:53:42 Sessions 1 Manual Loads 0 Difficulty Rogue Special Mode None Game No. 15 Rogue 15 Adventurer 0 Explorer 0 Win Type - Total 0 Types 0/0/0/0/0/0/0/0/0 Lore% 7 Gallery% 11 Achievement% 10 Wizard Run 0 Options --------- Layout 1 ASCII 0 Keyboard 0 Movement Mouse Keybinds 0 Fullscreen 2 Font 32/SmallcapsGlow Map View 50x35 Zoom Use 0% Tactical HUD 0 Map Filters NONE Filters NONE Steam 1 RUN: 3157a4a2-d53b-4288-8de7-7b12d4436b74